[Event "*** Titled Tuesday Blitz"]
[Site "Chess.com"]
[Date "2020.11.24"]
[Round "10"]
[White "sergeikim"]
[Black "tylityli"]
[Result "1-0"]
[WhiteElo "2512"]
[BlackElo "2320"]
[TimeControl "180+1"]
[EndTime "12:13:40 PST"]
[Termination "sergeikim won by resignation"]

1. d4 {[%clk 0:03:00.9]} 1... Nf6 {[%clk 0:02:59.3]} 2. c4 {[%clk 0:03:00.3]}
2... e6 {[%clk 0:02:58.4]} 3. Nc3 {[%clk 0:03:00.3]} 3... Bb4 {[%clk 0:02:57.3]}
4. Qc2 {[%clk 0:02:59.9]} 4... O-O {[%clk 0:02:50.1]} 5. a3 {[%clk 0:02:58.8]}
5... Bxc3+ {[%clk 0:02:48.7]} 6. Qxc3 {[%clk 0:02:59.1]} 6... b6 {[%clk
0:02:46.2]} 7. Nf3 {[%clk 0:02:58.7]} 7... Bb7 {[%clk 0:02:42.6]} 8. g3 {[%clk
0:02:58.6]} 8... d6 {[%clk 0:02:33.1]} 9. Bg2 {[%clk 0:02:56.6]} 9... Nbd7
{[%clk 0:02:32.6]} 10. O-O {[%clk 0:02:54.6]} 10... a5 {[%clk 0:02:31.6]} 11. b3
{[%clk 0:02:54]} 11... Be4 {[%clk 0:02:31.2]} 12. Bh3 {[%clk 0:02:51.9]} 12...
h6 {[%clk 0:02:26.3]} 13. Nd2 {[%clk 0:02:51]} 13... Bb7 {[%clk 0:02:24.8]} 14.
f3 {[%clk 0:02:50.6]} 14... e5 {[%clk 0:02:22.2]} 15. d5 {[%clk 0:02:49.7]}
15... e4 {[%clk 0:02:13.7]} 16. f4 {[%clk 0:02:47.7]} 16... Re8 {[%clk
0:02:03.4]} 17. e3 {[%clk 0:02:42.8]} 17... Nc5 {[%clk 0:02:02.7]} 18. Bg2
{[%clk 0:02:20.8]} 18... Bc8 {[%clk 0:01:51]} 19. Bb2 {[%clk 0:02:10.6]} 19...
Bf5 {[%clk 0:01:50.6]} 20. h3 {[%clk 0:02:08.6]} 20... h5 {[%clk 0:01:49.7]} 21.
Kh2 {[%clk 0:02:03.8]} 21... Qe7 {[%clk 0:01:45.1]} 22. Rg1 {[%clk 0:01:59.3]}
22... Nd3 {[%clk 0:01:34.2]} 23. Bf1 {[%clk 0:01:57.7]} 23... Nxb2 {[%clk
0:01:33.2]} 24. Qxb2 {[%clk 0:01:56.7]} 24... Qd7 {[%clk 0:01:30.1]} 25. Qd4
{[%clk 0:01:51.2]} 25... c5 {[%clk 0:01:21.9]} 26. dxc6 {[%clk 0:01:40.9]} 26...
Qxc6 {[%clk 0:01:21.3]} 27. Be2 {[%clk 0:01:36.8]} 27... Qd7 {[%clk 0:01:18.7]}
28. Bf1 {[%clk 0:01:24.4]} 28... Qc6 {[%clk 0:01:17]} 29. Bg2 {[%clk 0:01:22.7]}
29... Rad8 {[%clk 0:01:10.7]} 30. Rac1 {[%clk 0:01:20]} 30... d5 {[%clk
0:01:07]} 31. c5 {[%clk 0:01:19.3]} 31... b5 {[%clk 0:01:05.3]} 32. b4 {[%clk
0:01:16.6]} 32... a4 {[%clk 0:01:02.5]} 33. Rcd1 {[%clk 0:01:12]} 33... Qd7
{[%clk 0:00:56]} 34. Nb1 {[%clk 0:01:11.3]} 34... Qc6 {[%clk 0:00:51.2]} 35. Nc3
{[%clk 0:01:11.1]} 35... Re7 {[%clk 0:00:45.2]} 36. Bf1 {[%clk 0:01:10.6]} 36...
Rb7 {[%clk 0:00:43.5]} 37. Be2 {[%clk 0:01:09.7]} 37... Qd7 {[%clk 0:00:40.7]}
38. Bf1 {[%clk 0:01:09.1]} 38... Qc6 {[%clk 0:00:40.1]} 39. Rd2 {[%clk
0:01:07.5]} 39... Qd7 {[%clk 0:00:36.7]} 40. Ne2 {[%clk 0:01:06.7]} 40... Qe6
{[%clk 0:00:33.3]} 41. Qc3 {[%clk 0:01:05.6]} 41... Rc8 {[%clk 0:00:30.1]} 42.
Nd4 {[%clk 0:01:05.2]} 42... Qd7 {[%clk 0:00:29.4]} 43. Rc2 {[%clk 0:01:04.5]}
43... Rbb8 {[%clk 0:00:22.4]} 44. c6 {[%clk 0:01:01.1]} 1-0

[Event "*** Titled Tuesday Blitz"]
[Site "Chess.com"]
[Date "2020.11.24"]
[Round "10"]
[White "Chernov_Mikhail"]
[Black "Campelov"]
[Result "1-0"]
[WhiteElo "2324"]
[BlackElo "2194"]
[TimeControl "180+1"]
[EndTime "12:13:41 PST"]
[Termination "Chernov_Mikhail won by resignation"]

1. e4 {[%clk 0:03:00.9]} 1... c5 {[%clk 0:02:59.6]} 2. Nf3 {[%clk 0:03:00.6]}
2... e6 {[%clk 0:02:58.7]} 3. d4 {[%clk 0:03:01.5]} 3... cxd4 {[%clk 0:02:59.4]}
4. Nxd4 {[%clk 0:03:02.4]} 4... Nc6 {[%clk 0:02:59.8]} 5. Be2 {[%clk 0:03:02.6]}
5... Qc7 {[%clk 0:02:59.5]} 6. O-O {[%clk 0:03:02.5]} 6... a6 {[%clk 0:02:59.9]}
7. Be3 {[%clk 0:03:02.3]} 7... Nf6 {[%clk 0:02:59.4]} 8. Nc3 {[%clk 0:03:02.9]}
8... Bb4 {[%clk 0:02:57.7]} 9. Na4 {[%clk 0:03:01.8]} 9... Be7 {[%clk
0:02:56.6]} 10. Nxc6 {[%clk 0:02:59]} 10... bxc6 {[%clk 0:02:55.6]} 11. Nb6
{[%clk 0:02:59.9]} 11... Rb8 {[%clk 0:02:55.8]} 12. Nxc8 {[%clk 0:03:00.8]}
12... Qxc8 {[%clk 0:02:56.2]} 13. e5 {[%clk 0:03:00.8]} 13... Nd5 {[%clk
0:02:56.2]} 14. Bc1 {[%clk 0:03:01.4]} 14... Bc5 {[%clk 0:02:55.1]} 15. a3
{[%clk 0:02:38.5]} 15... O-O {[%clk 0:02:43.6]} 16. c4 {[%clk 0:02:37.7]} 16...
Ne7 {[%clk 0:02:42.4]} 17. b4 {[%clk 0:02:38.1]} 17... Bb6 {[%clk 0:02:23]} 18.
Bd3 {[%clk 0:02:38.2]} 18... Qc7 {[%clk 0:02:14.3]} 19. Qh5 {[%clk 0:02:09.1]}
19... g6 {[%clk 0:02:09.7]} 20. Qe2 {[%clk 0:02:05.2]} 20... Bd4 {[%clk
0:02:07.4]} 21. Bb2 {[%clk 0:02:03.3]} 21... Bxb2 {[%clk 0:02:03.8]} 22. Qxb2
{[%clk 0:02:04.2]} 22... d5 {[%clk 0:01:59.9]} 23. exd6 {[%clk 0:02:01.2]} 23...
Qxd6 {[%clk 0:01:59.6]} 24. Rad1 {[%clk 0:01:56.8]} 24... Qc7 {[%clk 0:01:51.9]}
25. Rfe1 {[%clk 0:01:49.5]} 25... a5 {[%clk 0:01:51.5]} 26. h4 {[%clk 0:01:20]}
26... axb4 {[%clk 0:01:45.6]} 27. axb4 {[%clk 0:01:20.9]} 27... h5 {[%clk
0:01:27.1]} 28. Rb1 {[%clk 0:01:05]} 28... Rfd8 {[%clk 0:01:18.7]} 29. Bf1
{[%clk 0:00:56.5]} 29... Nf5 {[%clk 0:01:12]} 30. g3 {[%clk 0:00:56.1]} 30...
Nd4 {[%clk 0:00:46.4]} 31. Bg2 {[%clk 0:00:55.6]} 31... c5 {[%clk 0:00:46.4]}
32. b5 {[%clk 0:00:54.3]} 32... Rd7 {[%clk 0:00:27.7]} 33. b6 {[%clk 0:00:50.6]}
33... Qd8 {[%clk 0:00:23.5]} 34. b7 {[%clk 0:00:50.2]} 34... Qc7 {[%clk
0:00:21.5]} 35. Qb6 {[%clk 0:00:47.5]} 35... Kf8 {[%clk 0:00:19.7]} 36. Qxc7
{[%clk 0:00:46.1]} 36... Rxc7 {[%clk 0:00:19.2]} 37. Rb6 {[%clk 0:00:44.8]}
37... Ke7 {[%clk 0:00:18.2]} 38. Ra1 {[%clk 0:00:44.7]} 38... Kd7 {[%clk
0:00:10.8]} 39. Ra8 {[%clk 0:00:42.4]} 39... Nc6 {[%clk 0:00:09.9]} 40. Bxc6+
{[%clk 0:00:41.5]} 40... Rxc6 {[%clk 0:00:10.3]} 41. Rxc6 {[%clk 0:00:38.4]}
41... Kxc6 {[%clk 0:00:10.3]} 42. Rxb8 {[%clk 0:00:38.2]} 1-0

[Event "*** Titled Tuesday Blitz"]
[Site "Chess.com"]
[Date "2020.11.24"]
[Round "10"]
[White "OsorioFernando"]
[Black "WPWPWP-2015"]
[Result "1-0"]
[WhiteElo "2372"]
[BlackElo "2501"]
[TimeControl "180+1"]
[EndTime "12:13:49 PST"]
[Termination "OsorioFernando won on time"]

1. e4 {[%clk 0:03:00.9]} 1... c5 {[%clk 0:02:59.1]} 2. Nc3 {[%clk 0:03:00.6]}
2... d6 {[%clk 0:02:58]} 3. g3 {[%clk 0:03:00.7]} 3... g6 {[%clk 0:02:56]} 4.
Bg2 {[%clk 0:03:00.7]} 4... Bg7 {[%clk 0:02:56.1]} 5. d3 {[%clk 0:03:01.2]} 5...
e6 {[%clk 0:02:55.9]} 6. Be3 {[%clk 0:03:01.1]} 6... Ne7 {[%clk 0:02:55.9]} 7.
Qd2 {[%clk 0:03:01.2]} 7... O-O {[%clk 0:02:55.8]} 8. Bh6 {[%clk 0:03:01.1]}
8... Nd7 {[%clk 0:02:53.5]} 9. h4 {[%clk 0:03:00.5]} 9... Nf6 {[%clk 0:02:51.8]}
10. Bxg7 {[%clk 0:02:59.5]} 10... Kxg7 {[%clk 0:02:51.9]} 11. h5 {[%clk
0:02:59.5]} 11... Bd7 {[%clk 0:02:44.4]} 12. O-O-O {[%clk 0:02:57.5]} 12... b5
{[%clk 0:02:41.2]} 13. Qf4 {[%clk 0:02:46.2]} 13... Ne8 {[%clk 0:02:21.4]} 14.
hxg6 {[%clk 0:02:43.2]} 14... fxg6 {[%clk 0:02:20.9]} 15. Qh6+ {[%clk
0:02:42.4]} 15... Kf7 {[%clk 0:02:07]} 16. Nf3 {[%clk 0:02:28.3]} 16... Nf6
{[%clk 0:01:31.8]} 17. e5 {[%clk 0:02:16.6]} 17... Nf5 {[%clk 0:01:12.8]} 18.
Qh2 {[%clk 0:01:57]} 18... Ne8 {[%clk 0:00:34.8]} 19. g4 {[%clk 0:01:46.7]}
19... Nd4 {[%clk 0:00:20.3]} 20. Qxh7+ {[%clk 0:01:36.3]} 20... Ng7 {[%clk
0:00:20.3]} 21. Rh6 {[%clk 0:01:32.1]} 21... Nxf3 {[%clk 0:00:08.7]} 22. Qxg6+
{[%clk 0:01:30.6]} 22... Kg8 {[%clk 0:00:08.7]} 23. Bxf3 {[%clk 0:01:06.4]}
23... Qe8 {[%clk 0:00:04.2]} 24. Bxa8 {[%clk 0:00:40.4]} 24... Qxg6 {[%clk
0:00:03.5]} 25. Rxg6 {[%clk 0:00:38.1]} 25... d5 {[%clk 0:00:03.6]} 26. Bxd5
{[%clk 0:00:15.6]} 26... exd5 {[%clk 0:00:03.6]} 27. Nxd5 {[%clk 0:00:14.9]}
27... Kh7 {[%clk 0:00:03.4]} 28. Ne7 {[%clk 0:00:12.1]} 28... Bxg4 {[%clk
0:00:01.6]} 29. Rh1+ {[%clk 0:00:11]} 29... Nh5 {[%clk 0:00:01.8]} 30. Rxg4
{[%clk 0:00:08.7]} 1-0

[Event "*** Titled Tuesday Blitz"]
[Site "Chess.com"]
[Date "2020.11.24"]
[Round "10"]
[White "wisdomboy"]
[Black "Unknown_IM"]
[Result "0-1"]
[WhiteElo "2190"]
[BlackElo "2389"]
[TimeControl "180+1"]
[EndTime "12:13:49 PST"]
[Termination "Unknown_IM won on time"]

1. d4 {[%clk 0:03:00.9]} 1... d5 {[%clk 0:02:59.4]} 2. c4 {[%clk 0:03:00.9]}
2... e6 {[%clk 0:02:57.9]} 3. Nc3 {[%clk 0:03:00.2]} 3... c6 {[%clk 0:02:55.7]}
4. Nf3 {[%clk 0:02:59.8]} 4... dxc4 {[%clk 0:02:55.6]} 5. a4 {[%clk 0:02:58.3]}
5... Bb4 {[%clk 0:02:54.9]} 6. e4 {[%clk 0:02:52.8]} 6... b5 {[%clk 0:02:53]} 7.
Be2 {[%clk 0:02:47.9]} 7... Bb7 {[%clk 0:02:49.9]} 8. O-O {[%clk 0:02:46.6]}
8... a6 {[%clk 0:02:49.2]} 9. Bg5 {[%clk 0:02:32.5]} 9... Ne7 {[%clk 0:02:45.9]}
10. Qc2 {[%clk 0:01:58.2]} 10... h6 {[%clk 0:02:44.1]} 11. Bf4 {[%clk
0:01:56.7]} 11... Nd7 {[%clk 0:02:43.4]} 12. Rfd1 {[%clk 0:01:52.9]} 12... O-O
{[%clk 0:02:42.4]} 13. e5 {[%clk 0:01:35.8]} 13... Nd5 {[%clk 0:02:39.8]} 14.
Bg3 {[%clk 0:01:28.3]} 14... Nxc3 {[%clk 0:02:38.6]} 15. bxc3 {[%clk 0:01:29.2]}
15... Be7 {[%clk 0:02:38.5]} 16. Nd2 {[%clk 0:01:26.1]} 16... c5 {[%clk
0:02:36.2]} 17. Bf3 {[%clk 0:01:12.6]} 17... Qc7 {[%clk 0:02:33.3]} 18. Ne4
{[%clk 0:01:07.7]} 18... cxd4 {[%clk 0:02:31.5]} 19. Rxd4 {[%clk 0:00:56.4]}
19... Nc5 {[%clk 0:02:26.1]} 20. Nd6 {[%clk 0:00:50.4]} 20... Bxf3 {[%clk
0:02:23.9]} 21. gxf3 {[%clk 0:00:45]} 21... Nb3 {[%clk 0:02:23.8]} 22. Rad1
{[%clk 0:00:42.4]} 22... Nxd4 {[%clk 0:02:22.5]} 23. Rxd4 {[%clk 0:00:43.3]}
23... Qc6 {[%clk 0:02:18.4]} 24. f4 {[%clk 0:00:34.3]} 24... Rfd8 {[%clk
0:02:11.4]} 25. f5 {[%clk 0:00:32.6]} 25... Bxd6 {[%clk 0:02:11]} 26. exd6
{[%clk 0:00:32]} 26... Qf3 {[%clk 0:01:59.6]} 27. fxe6 {[%clk 0:00:30.9]} 27...
fxe6 {[%clk 0:02:00.5]} 28. Rf4 {[%clk 0:00:20.2]} 28... Qd5 {[%clk 0:01:52.4]}
29. Qg6 {[%clk 0:00:19]} 29... Ra7 {[%clk 0:01:52.4]} 30. Rf6 {[%clk 0:00:13.8]}
30... Qg5 {[%clk 0:01:47.5]} 31. Qxg5 {[%clk 0:00:09.5]} 31... hxg5 {[%clk
0:01:48.4]} 32. Rxe6 {[%clk 0:00:10.3]} 32... bxa4 {[%clk 0:01:44.8]} 33. Re4
{[%clk 0:00:09.8]} 33... Rb7 {[%clk 0:01:38.4]} 34. Rxc4 {[%clk 0:00:09.8]}
34... a3 {[%clk 0:01:38.5]} 35. Ra4 {[%clk 0:00:09.3]} 35... Rb3 {[%clk
0:01:35.7]} 36. c4 {[%clk 0:00:09.2]} 36... Rc3 {[%clk 0:01:30.2]} 37. Rxa6
{[%clk 0:00:08]} 37... Kf7 {[%clk 0:01:25.9]} 38. c5 {[%clk 0:00:07.4]} 38...
Ke6 {[%clk 0:01:25.8]} 39. c6 {[%clk 0:00:07.2]} 39... g6 {[%clk 0:00:46.1]} 40.
Kg2 {[%clk 0:00:05.3]} 40... g4 {[%clk 0:00:31.3]} 0-1

[Event "*** Titled Tuesday Blitz"]
[Site "Chess.com"]
[Date "2020.11.24"]
[Round "10"]
[White "jacky72"]
[Black "kleopl"]
[Result "0-1"]
[WhiteElo "2670"]
[BlackElo "2522"]
[TimeControl "180+1"]
[EndTime "12:13:51 PST"]
[Termination "kleopl won by checkmate"]

1. d4 {[%clk 0:03:00.8]} 1... f5 {[%clk 0:02:59.7]} 2. c4 {[%clk 0:03:01.7]}
2... Nf6 {[%clk 0:02:59.3]} 3. g3 {[%clk 0:03:02.6]} 3... d6 {[%clk 0:02:58.6]}
4. Bg2 {[%clk 0:03:03.5]} 4... g6 {[%clk 0:02:58.4]} 5. Nf3 {[%clk 0:03:04.4]}
5... Bg7 {[%clk 0:02:58.7]} 6. O-O {[%clk 0:03:05.3]} 6... O-O {[%clk 0:02:59]}
7. b3 {[%clk 0:03:06.2]} 7... e5 {[%clk 0:02:41.4]} 8. Bb2 {[%clk 0:03:07.1]}
8... e4 {[%clk 0:02:39.3]} 9. Ng5 {[%clk 0:03:07.6]} 9... Nc6 {[%clk 0:02:23.6]}
10. f3 {[%clk 0:03:07.3]} 10... exf3 {[%clk 0:02:16]} 11. exf3 {[%clk
0:03:08.2]} 11... h6 {[%clk 0:02:13.1]} 12. Nh3 {[%clk 0:03:08.5]} 12... g5
{[%clk 0:02:13.3]} 13. Nc3 {[%clk 0:03:07.2]} 13... a6 {[%clk 0:02:06]} 14. Qd2
{[%clk 0:03:02.1]} 14... Qe8 {[%clk 0:01:52.2]} 15. Rae1 {[%clk 0:03:01.9]}
15... Qg6 {[%clk 0:01:48.6]} 16. Nf2 {[%clk 0:02:56.9]} 16... Bd7 {[%clk
0:01:45.4]} 17. d5 {[%clk 0:02:56.7]} 17... Ne5 {[%clk 0:01:42.3]} 18. Nd3
{[%clk 0:02:56.8]} 18... Nxd3 {[%clk 0:01:37.7]} 19. Qxd3 {[%clk 0:02:57.7]}
19... Rae8 {[%clk 0:01:35]} 20. Qd2 {[%clk 0:02:53.9]} 20... Nh5 {[%clk
0:01:31.3]} 21. Rxe8 {[%clk 0:02:48.6]} 21... Rxe8 {[%clk 0:01:31]} 22. Re1
{[%clk 0:02:49.5]} 22... f4 {[%clk 0:01:26]} 23. g4 {[%clk 0:02:44.9]} 23... Nf6
{[%clk 0:01:24.3]} 24. Bf1 {[%clk 0:02:43.5]} 24... Rxe1 {[%clk 0:01:19.1]} 25.
Qxe1 {[%clk 0:02:44.4]} 25... Qc2 {[%clk 0:01:19]} 26. Qf2 {[%clk 0:02:44.8]}
26... Qg6 {[%clk 0:01:04.8]} 27. Qd2 {[%clk 0:02:43.4]} 27... Qe8 {[%clk
0:01:01.6]} 28. Bd3 {[%clk 0:02:43.4]} 28... Nh7 {[%clk 0:00:48.5]} 29. Ne4
{[%clk 0:02:41.3]} 29... Bxb2 {[%clk 0:00:43.2]} 30. Qxb2 {[%clk 0:02:42.2]}
30... Qe7 {[%clk 0:00:39.7]} 31. Qd4 {[%clk 0:02:39]} 31... Be8 {[%clk
0:00:39.4]} 32. c5 {[%clk 0:02:36.8]} 32... dxc5 {[%clk 0:00:35.5]} 33. Qxc5
{[%clk 0:02:37.7]} 33... Kf8 {[%clk 0:00:30.6]} 34. d6 {[%clk 0:02:33.7]} 34...
cxd6 {[%clk 0:00:29.4]} 35. Qxd6 {[%clk 0:02:34.6]} 35... Qxd6 {[%clk
0:00:20.4]} 36. Nxd6 {[%clk 0:02:35.5]} 36... Nf6 {[%clk 0:00:19.2]} 37. Nxb7
{[%clk 0:02:35.9]} 37... Bc6 {[%clk 0:00:16]} 38. Bxa6 {[%clk 0:02:36.2]} 38...
Bxf3 {[%clk 0:00:16]} 39. h3 {[%clk 0:02:36.6]} 39... Ke7 {[%clk 0:00:15.6]} 40.
Kf2 {[%clk 0:02:35.1]} 40... Bd5 {[%clk 0:00:14.5]} 41. Nc5 {[%clk 0:02:33.1]}
41... Kd6 {[%clk 0:00:14]} 42. Nd3 {[%clk 0:02:33]} 42... Ne4+ {[%clk
0:00:13.3]} 43. Ke1 {[%clk 0:02:33.4]} 43... Nc3 {[%clk 0:00:12.4]} 44. Nb4
{[%clk 0:02:33.8]} 44... Be4 {[%clk 0:00:10]} 45. Kd2 {[%clk 0:02:31.9]} 45...
Nb1+ {[%clk 0:00:07.7]} 46. Ke2 {[%clk 0:02:31.8]} 46... Kc5 {[%clk 0:00:07.7]}
47. Bd3 {[%clk 0:02:24.4]} 47... Kxb4 {[%clk 0:00:05.6]} 48. Bxe4 {[%clk
0:02:24.6]} 48... Nc3+ {[%clk 0:00:06.2]} 49. Kf3 {[%clk 0:02:23]} 49... Nxa2
{[%clk 0:00:06.3]} 50. Bd5 {[%clk 0:02:19]} 50... Nc1 {[%clk 0:00:06.4]} 51. Ke4
{[%clk 0:02:16.7]} 51... Nxb3 {[%clk 0:00:06.7]} 52. Kf5 {[%clk 0:02:17.2]}
52... Nd4+ {[%clk 0:00:04.6]} 53. Kg6 {[%clk 0:02:17]} 53... f3 {[%clk 0:00:05]}
54. Kxh6 {[%clk 0:02:15]} 54... f2 {[%clk 0:00:04.9]} 55. Bg2 {[%clk 0:02:15.9]}
55... Nf3 {[%clk 0:00:05]} 56. Kg6 {[%clk 0:02:08.3]} 56... Kc3 {[%clk
0:00:05.1]} 57. Bf1 {[%clk 0:02:07.2]} 57... Kd2 {[%clk 0:00:05]} 58. Kf5 {[%clk
0:02:06.7]} 58... Ke1 {[%clk 0:00:04.9]} 59. Ba6 {[%clk 0:02:04.6]} 59... f1=Q
{[%clk 0:00:04.4]} 60. Bxf1 {[%clk 0:02:03.6]} 60... Kxf1 {[%clk 0:00:05.3]} 61.
Ke4 {[%clk 0:01:54.1]} 61... Kf2 {[%clk 0:00:05]} 62. Kf5 {[%clk 0:01:49.3]}
62... Kg3 {[%clk 0:00:05.1]} 63. h4 {[%clk 0:01:50.2]} 63... Kxh4 {[%clk
0:00:05.3]} 64. Ke4 {[%clk 0:01:49.8]} 64... Kxg4 {[%clk 0:00:06.2]} 65. Ke3
{[%clk 0:01:50.3]} 65... Kg3 {[%clk 0:00:06.8]} 66. Ke2 {[%clk 0:01:51.2]} 66...
g4 {[%clk 0:00:07.7]} 67. Kf1 {[%clk 0:01:52.1]} 67... Kh2 {[%clk 0:00:07.2]}
68. Kf2 {[%clk 0:01:52.3]} 68... g3+ {[%clk 0:00:07.4]} 69. Kxf3 {[%clk
0:01:53.2]} 69... g2 {[%clk 0:00:08.3]} 70. Kg4 {[%clk 0:01:53.4]} 70... g1=Q+
{[%clk 0:00:08.2]} 71. Kh4 {[%clk 0:01:54.3]} 71... Qg8 {[%clk 0:00:07.2]} 72.
Kh5 {[%clk 0:01:54.6]} 72... Kg3 {[%clk 0:00:07.5]} 73. Kh6 {[%clk 0:01:55.5]}
73... Kf4 {[%clk 0:00:07.6]} 74. Kh5 {[%clk 0:01:56.4]} 74... Qh7# {[%clk
0:00:07.8]} 0-1

[Event "*** Titled Tuesday Blitz"]
[Site "Chess.com"]
[Date "2020.11.24"]
[Round "10"]
[White "levallem"]
[Black "Nara_Kh"]
[Result "0-1"]
[WhiteElo "2232"]
[BlackElo "2365"]
[TimeControl "180+1"]
[EndTime "12:13:54 PST"]
[Termination "Nara_Kh won on time"]

1. d4 {[%clk 0:02:45]} 1... b6 {[%clk 0:02:58]} 2. e4 {[%clk 0:02:43.8]} 2...
Bb7 {[%clk 0:02:58.1]} 3. Bd3 {[%clk 0:02:44.4]} 3... g6 {[%clk 0:02:58.1]} 4.
Be3 {[%clk 0:02:41.1]} 4... Bg7 {[%clk 0:02:58.4]} 5. Nd2 {[%clk 0:02:41.1]}
5... c5 {[%clk 0:02:58.7]} 6. c3 {[%clk 0:02:41.4]} 6... d6 {[%clk 0:02:58.7]}
7. Ngf3 {[%clk 0:02:39]} 7... Nf6 {[%clk 0:02:58.1]} 8. h3 {[%clk 0:02:38.5]}
8... O-O {[%clk 0:02:57.9]} 9. O-O {[%clk 0:02:38.1]} 9... Nbd7 {[%clk
0:02:57.5]} 10. a4 {[%clk 0:02:35.6]} 10... Qc7 {[%clk 0:02:57.2]} 11. Qe2
{[%clk 0:02:28.3]} 11... a6 {[%clk 0:02:52.5]} 12. Rfc1 {[%clk 0:02:25.9]} 12...
e5 {[%clk 0:02:45]} 13. b4 {[%clk 0:02:18.1]} 13... exd4 {[%clk 0:02:39.6]} 14.
cxd4 {[%clk 0:02:16.9]} 14... Rfe8 {[%clk 0:02:40]} 15. bxc5 {[%clk 0:02:10.8]}
15... dxc5 {[%clk 0:02:39.2]} 16. dxc5 {[%clk 0:01:50.6]} 16... bxc5 {[%clk
0:02:39.1]} 17. Rc4 {[%clk 0:01:33.4]} 17... Qd6 {[%clk 0:02:19.9]} 18. Rac1
{[%clk 0:01:30.1]} 18... Rac8 {[%clk 0:02:19.6]} 19. e5 {[%clk 0:00:51.2]} 19...
Nxe5 {[%clk 0:02:17.5]} 20. Nxe5 {[%clk 0:00:39]} 20... Rxe5 {[%clk 0:02:01.4]}
21. Nb3 {[%clk 0:00:31.6]} 21... Nd7 {[%clk 0:01:28.4]} 22. Bf4 {[%clk
0:00:24.1]} 22... Qd5 {[%clk 0:01:11.5]} 23. Qf1 {[%clk 0:00:19.2]} 23... Rh5
{[%clk 0:01:05.3]} 24. Be4 {[%clk 0:00:16.7]} 24... Qe6 {[%clk 0:00:54.6]} 25.
Bxb7 {[%clk 0:00:16.5]} 25... Re8 {[%clk 0:00:55.2]} 26. Bf3 {[%clk 0:00:15.5]}
26... Nb6 {[%clk 0:00:49]} 27. Bxh5 {[%clk 0:00:12.5]} 27... Nxc4 {[%clk
0:00:48.6]} 28. Bf3 {[%clk 0:00:11.7]} 28... Ne5 {[%clk 0:00:41.8]} 29. Bxe5
{[%clk 0:00:10.3]} 29... Qxe5 {[%clk 0:00:41.2]} 30. Nxc5 {[%clk 0:00:10.9]}
30... Qd4 {[%clk 0:00:41.2]} 31. Nd3 {[%clk 0:00:10]} 31... Qxa4 {[%clk
0:00:41.1]} 32. Nc5 {[%clk 0:00:10.1]} 32... Qd4 {[%clk 0:00:41]} 33. Nxa6
{[%clk 0:00:08.9]} 33... Bh6 {[%clk 0:00:41.1]} 34. Rd1 {[%clk 0:00:08]} 34...
Qb2 {[%clk 0:00:41.1]} 35. Nc5 {[%clk 0:00:07.6]} 35... Bd2 {[%clk 0:00:40.2]}
36. Nd3 {[%clk 0:00:07.9]} 36... Qc3 {[%clk 0:00:39]} 37. g3 {[%clk 0:00:02.1]}
37... Rd8 {[%clk 0:00:39.1]} 38. Be2 {[%clk 0:00:01.8]} 38... Bg5 {[%clk
0:00:37]} 39. Kg2 {[%clk 0:00:02]} 39... Qc6+ {[%clk 0:00:35.5]} 40. Bf3 {[%clk
0:00:02.4]} 40... Qc2 {[%clk 0:00:35.3]} 0-1

[Event "*** Titled Tuesday Blitz"]
[Site "Chess.com"]
[Date "2020.11.24"]
[Round "10"]
[White "penguingm1"]
[Black "TrickyFortem"]
[Result "0-1"]
[WhiteElo "2935"]
[BlackElo "2540"]
[TimeControl "180+1"]
[EndTime "12:13:58 PST"]
[Termination "TrickyFortem won by resignation"]

1. g4 {[%clk 0:02:56.6]} 1... d5 {[%clk 0:02:59.7]} 2. Bg2 {[%clk 0:02:54.4]}
2... c6 {[%clk 0:02:58.8]} 3. h3 {[%clk 0:02:53.6]} 3... Nf6 {[%clk 0:02:58.5]}
4. c4 {[%clk 0:02:47.9]} 4... e5 {[%clk 0:02:54.5]} 5. cxd5 {[%clk 0:02:42.3]}
5... cxd5 {[%clk 0:02:54.6]} 6. Nc3 {[%clk 0:02:43]} 6... d4 {[%clk 0:02:51.7]}
7. Ne4 {[%clk 0:02:38.1]} 7... Nc6 {[%clk 0:02:49.3]} 8. d3 {[%clk 0:02:34.6]}
8... Be7 {[%clk 0:02:47.4]} 9. Bd2 {[%clk 0:02:31.9]} 9... Nd5 {[%clk
0:02:47.2]} 10. Rc1 {[%clk 0:02:31.6]} 10... O-O {[%clk 0:02:46.1]} 11. Nf3
{[%clk 0:02:31]} 11... f5 {[%clk 0:02:40]} 12. gxf5 {[%clk 0:02:29.3]} 12...
Bxf5 {[%clk 0:02:40.9]} 13. O-O {[%clk 0:02:21.7]} 13... Bxe4 {[%clk 0:02:36.2]}
14. dxe4 {[%clk 0:02:21.7]} 14... Nf6 {[%clk 0:02:36.6]} 15. Ng5 {[%clk
0:02:20.2]} 15... Qb6 {[%clk 0:02:29.9]} 16. b4 {[%clk 0:01:53.7]} 16... Nd8
{[%clk 0:02:24.6]} 17. a4 {[%clk 0:01:37.8]} 17... Nh5 {[%clk 0:02:20.3]} 18.
Nf3 {[%clk 0:01:32.1]} 18... Qe6 {[%clk 0:02:09.8]} 19. Qc2 {[%clk 0:01:26.4]}
19... Nf4 {[%clk 0:02:05.8]} 20. Qc4 {[%clk 0:01:26.1]} 20... Qxc4 {[%clk
0:02:02.4]} 21. Rxc4 {[%clk 0:01:26.3]} 21... Nxe2+ {[%clk 0:02:01.9]} 22. Kh1
{[%clk 0:01:26.4]} 22... Bd6 {[%clk 0:01:59.5]} 23. Ne1 {[%clk 0:01:21.5]} 23...
Ne6 {[%clk 0:01:55.9]} 24. Bf3 {[%clk 0:01:20.6]} 24... N2f4 {[%clk 0:01:54.2]}
25. Bg4 {[%clk 0:01:20.6]} 25... Rae8 {[%clk 0:01:50.6]} 26. b5 {[%clk
0:01:12.1]} 26... h5 {[%clk 0:01:49.3]} 27. Bxf4 {[%clk 0:01:02.9]} 27... Nxf4
{[%clk 0:01:48.4]} 28. Bd1 {[%clk 0:01:02.4]} 28... Nxh3 {[%clk 0:01:44.8]} 29.
Nd3 {[%clk 0:01:02.8]} 29... Nf4 {[%clk 0:01:39.6]} 30. Bc2 {[%clk 0:00:56]}
30... Ne2 {[%clk 0:01:28.9]} 31. Re1 {[%clk 0:00:50.9]} 31... Nc3 {[%clk
0:01:22.1]} 32. f4 {[%clk 0:00:51.3]} 32... exf4 {[%clk 0:00:49.1]} 33. e5
{[%clk 0:00:50.4]} 33... Bb8 {[%clk 0:00:40.5]} 34. Rxd4 {[%clk 0:00:47.5]}
34... f3 {[%clk 0:00:37.2]} 35. Rc4 {[%clk 0:00:31.5]} 35... Ne2 {[%clk
0:00:33.8]} 36. Bb3 {[%clk 0:00:27.5]} 36... Kh7 {[%clk 0:00:32.6]} 37. Rh4
{[%clk 0:00:27.3]} 37... Kh6 {[%clk 0:00:30]} 38. e6 {[%clk 0:00:19.7]} 38... f2
{[%clk 0:00:23]} 39. Rf1 {[%clk 0:00:19.1]} 39... Ng3+ {[%clk 0:00:21.9]} 40.
Kg2 {[%clk 0:00:19.8]} 40... Nxf1 {[%clk 0:00:22.3]} 41. Kxf1 {[%clk 0:00:20.7]}
41... Rf3 {[%clk 0:00:19.2]} 42. Bc4 {[%clk 0:00:19.5]} 42... g5 {[%clk
0:00:18.2]} 43. Rh1 {[%clk 0:00:17.5]} 43... g4 {[%clk 0:00:17.9]} 44. Ne5
{[%clk 0:00:18]} 44... Bxe5 {[%clk 0:00:17.6]} 45. Be2 {[%clk 0:00:15.5]} 45...
Rf4 {[%clk 0:00:16.2]} 0-1